Cogmind - Beta 17.1 @@@ ROGUE MODE // 2026.09.04 @ 14:43:10 Player: Godsword Result: Self-destructed Performance ------------- Evolutions (2) 1000 Regions Visited (3) 600 Robots Destroyed (5) 25 Value Destroyed (104) 104 Prototype IDs (0) 0 Alien Tech Used (0) 0 Bonus (200) 200 TOTAL SCORE: 1929 Bonus ------- Pacifist 200 Cogmind --------- Core Integrity 521/550 Matter 275/300 Energy 238/240 System Corruption 0% Temperature Cool (4) Movement Flying (37) Location -8/Materials Parts ------- > --- POWER (1) -------- Nuclear Core > --- PROPULSION (4) --- Xenon Bombardment Thruster Xenon Bombardment Thruster > --- UTILITY (4) ------ Improved Melee Analysis Suite Improved Melee Analysis Suite Improved Melee Analysis Suite Improved Melee Analysis Suite > --- WEAPON (2) ------- Hammer > --- INVENTORY (5) ---- Advanced Visual Processing Unit Target Analyzer Reaction Control System Grenade Launcher Peak State ------------ > --- POWER ------------ Nuclear Core > --- PROPULSION ------- Xenon Bombardment Thruster Xenon Bombardment Thruster Xenon Bombardment Thruster Xenon Bombardment Thruster > --- UTILITY ---------- Improved Melee Analysis Suite Improved Melee Analysis Suite Improved Melee Analysis Suite Improved Melee Analysis Suite > --- WEAPON ----------- Minigun Minigun > --- INVENTORY -------- Nuclear Core Advanced Visual Processing Unit Reaction Control System Grenade Launcher [Rating: 42] Favorites ----------- Power Backup Power I Engine Backup Power I Power Core Nuclear Core Propulsion Xenon Bombardment Thruster Hover Unit Backup Propulsion I Flight Unit Xenon Bombardment Thruster Utility Improved Melee Analysis Suite Processor Improved Melee Analysis Suite Protection Backup Plating I Weapon Backup Laser I Energy Gun Backup Laser I Ballistic Gun Minigun Impact Weapon Hammer Build | -11 -10 -10 -8 ------- Run | Yrd Mat Sub Mat Slots Evolved 4 | . . . 4 Power . | . . . . Propulsion 2 | . . . 2 Utility 2 | . . . 2 Weapon . | . . . . Parts Attached 15 | . . . 15 Power 4 | . . . 4 Engine 1 | . . . 1 Core 3 | . . . 3 Reactor . | . . . . Propulsion 4 | . . . 4 Treads . | . . . . Leg . | . . . . Wheel . | . . . . Hover . | . . . . Flight 4 | . . . 4 Utility 4 | . . . 4 Device . | . . . . Storage . | . . . . Processor 4 | . . . 4 Hackware . | . . . . Protection . | . . . . Artifact . | . . . . Weapon 3 | . . . 3 Energy Gun . | . . . . Energy Cannon . | . . . . Ballistic Gun 2 | . . . 2 Ballistic Cannon . | . . . . Launcher . | . . . . Special Weapon . | . . . . Impact Weapon 1 | . . . 1 Slashing Weapon . | . . . . Piercing Weapon . | . . . . Special Melee Weapon . | . . . . Unidentified Prototypes . | . . . . Parts Lost 3 | . . . 3 Power 1 | . . . 1 Propulsion 2 | . . . 2 Utility . | . . . . Weapon . | . . . . Highest Loss Streak 2 | . . . 2 To Critical Strikes . | . . . . Average Backups 4 | . . 4 4 Power 1 | . . 1 1 Propulsion . | . . 1 . Utility 1 | . . 1 2 Weapon . | . . . . Tool/Special . | . . . . Unused Backups 11 | . . 2 9 Power 1 | . . . 1 Propulsion 2 | . . . 2 Utility 6 | . . 2 4 Weapon 2 | . . . 2 Tool/Special . | . . . . Average Slot Usage (%) 93 | . 77 100 92 Engine 7 | . 10 14 1 Core 3 | . . . 6 Hover 13 | . 21 28 . Flight 16 | . . . 32 Processor 16 | . . . 31 Protection 14 | . 21 28 2 Energy Gun 15 | . 21 28 4 Ballistic Gun 5 | . . . 11 Peak Build Rating 42 | . 7 8 42 Average Rating 22 | . 6 7 37 On Entrance 3 | . . 7 8 Avg Prop Armor Cover (%) . | . . . . Naked Turns 11 | . 11 . . Heaviest Build 13 | . 5 5 13 Greatest Support 24 | 3 12 12 24 Greatest Overweight (x) . | . . . . Average Overweight (x) . | . . . . Largest Inventory Capacity 5 | 5 5 5 5 Average Capacity 5 | 5 5 5 5 Most Carried 5 | . 1 5 5 Average Carried 4 | . . 4 4 Final Capacity 5 | 5 5 5 5 Final Carried 5 | . 1 5 4 Class Distribution -------------------- 59% | Mutant 40% | Sprinter Dominant Class ---------------- Mutant | -10/Materials Mutant | -10/Subcaves Sprinter | -8/Materials Resources | -11 -10 -10 -8 ----------- Run | Yrd Mat Sub Mat Matter Collected 390 | 200 . . 190 Remotely . | . . . . Salvage Created 190 | . . . 190 Parts 14 | . . . 14 Haulers Intercepted 1 | . . . 1 Recyclers Shooed . | . . . . Parts Field Recycled . | . . . . Retrieved Matter . | . . . . Parts Self-Destructed 1 | . . 1 . Prevented . | . . . . Parts Restored . | . . . . Kills | -11 -10 -10 -8 ------- Run | Yrd Mat Sub Mat Combat Hostiles Destroyed 2 | . . . 2 Guns 2 | . . . 2 Classes Destroyed 4 | . . . 4 Worker 2 | . . . 2 Hauler 1 | . . . 1 Sentry 1 | . . . 1 Hunter 1 | . . . 1 Best Kill Streak 4 | . . . 4 Combat Bots Only 1 | . . . 1 Max Kills in Single Turn 1 | . . . 1 Gunslinging . | . . . . Exploded . | . . . . Melee . | . . . . Uniques/NPCs Destroyed . | . . . . Combat | -11 -10 -10 -8 -------- Run | Yrd Mat Sub Mat Hostile Shots Fired 17 | . . 1 16 Missed 4 | . . . 4 Hits 13 | . . 1 12 Projectile 13 | . . 1 12 Damage Taken 289 | . . 21 268 Core 50 | . . 21 29 Absorbed by Shields . | . . . . Core Remaining (%) 95 | 100 . 91 . Volleys Fired 21 | . 7 . 14 Largest 2 | . 2 . 2 Hottest 60 | . 60 . 60 Shots Fired 42 | . 14 . 28 Gun 42 | . 14 . 28 Cannon . | . . . . Launcher . | . . . . Special . | . . . . Kinetic 20 | . . . 20 Thermal 22 | . 14 . 8 Explosive . | . . . . Electromagnetic . | . . . . Robot Hit Streak 8 | . 3 . 8 Robot Miss Streak 4 | . 4 . 2 Penetration Max . | . . . . Secondary Targets . | . . . . Shots Hit Robots 33 | . 7 . 26 Core Hits 9 | . 1 . 8 Critical Kills . | . . . . Critical Parts Destroyed . | . . . . Critical Strikes . | . . . . Melee Attacks 6 | . . . 6 Impact 6 | . . . 6 Slashing . | . . . . Piercing . | . . . . Sneak Attacks 3 | . . . 3 Combat Hostiles . | . . . . Follow-up Attacks . | . . . . Damage Inflicted 603 | . 61 . 542 Guns 323 | . 61 . 262 Cannons . | . . . . Explosions . | . . . . Melee 280 | . . . 280 Ramming . | . . . . Kinetic 207 | . . . 207 Thermal 116 | . 61 . 55 Explosive . | . . . . Electromagnetic . | . . . . Impact 280 | . . . 280 Slashing . | . . . . Piercing . | . . . . Highest Corruption . | . . . . Average Corruption . | . . . . Corruption Purged . | . . . . Corruption Blocked . | . . . . Overload Shots . | . . . . Overflow Damage 29 | . . . 29 Projectiles . | . . . . Explosions . | . . . . Melee 29 | . . . 29 Knockbacks . | . . . . Impact . | . . . . Kinetic . | . . . . Secondary . | . . . . Self-Inflicted Damage . | . . . . Shots . | . . . . Rammed . | . . . . Targets Rammed . | . . . . Kicked . | . . . . Crushed . | . . . . Highest Temperature 64 | . 18 . 64 Average Temperature 19 | . 7 . 25 Received Heat Transfer 6 | . . 6 . Siege Activations . | . . . . Martial Activations . | . . . . Shielding Activations . | . . . . Robots Disrupted . | . . . . Combat Hostiles . | . . . . Robots Corrupted . | . . . . Combat Hostiles . | . . . . Parts Fried 3 | . . . 3 Impact Corruptions 1 | . . . 1 Robots Melted . | . . . . Combat Hostiles . | . . . . Parts Melted . | . . . . Heat Transferred 481 | . 259 . 222 Parts Sabotaged . | . . . . Parts Stolen . | . . . . Parts Stripped . | . . . . Power Chain Reactions . | . . . . Alert | -11 -10 -10 -8 ------- Run | Yrd Mat Sub Mat Maximum Alert Level . | . . . . Low Security (%) 100 | 100 100 . 100 Level 1 . | . . . . Level 2 . | . . . . Level 3 . | . . . . Level 4 . | . . . . Level 5 . | . . . . High Security . | . . . . Max Security . | . . . . Peak Influence 60 | . 6 . 60 Initial . | . . . . Average 7 | . . . 9 Influence Increases 159 | . 6 . 153 Destroy 0b10 Robot/C 40 | . . . 40 Destroy 0b10 Robot/NC 15 | . . . 15 Destroy Leader 22 | . . . 22 Successful Hack 6 | . 6 . . Destroy Structure 1 | . . . 1 Partial Spotted 15 | . . . 15 Lose Combat Pursuer 60 | . . . 60 Influence Decreases 107 | . 6 . 101 Time Decay 87 | . 6 . 81 Lost Part 20 | . . . 20 Squads Dispatched 1 | . . . 1 Investigation . | . . . . Extermination . | . . . . Reinforcement 1 | . . . 1 Assault . | . . . . Garrison . | . . . . Intercept . | . . . . Searches Triggered . | . . . . Construction Impeded . | . . . . Haulers Reinforced . | . . . . Active Scanning Responses . | . . . . Cargo Convoy Interrupts . | . . . . Stealth | -11 -10 -10 -8 --------- Run | Yrd Mat Sub Mat Distress Signals 1 | . . . 1 Communications Jammed . | . . . . Distress Signals . | . . . . Times Spotted 15 | . 2 4 9 Peak Tracking Total 6 | . 1 2 6 Tactical Retreats 1 | . . . 1 Traps | -11 -10 -10 -8 ------- Run | Yrd Mat Sub Mat Traps Triggered . | . . . . Indirectly . | . . . . Trap Hack Attempts . | . . . . Triggered . | . . . . Disarmed . | . . . . Reprogrammed . | . . . . Reused . | . . . . Traps Extracted . | . . . . Installed 1 | . . 1 . Triggered . | . . . . Machines | -11 -10 -10 -8 ---------- Run | Yrd Mat Sub Mat Machines Disabled . | . . . . Max in Single Turn . | . . . . Machines Repaired . | . . . . Machines Dismantled . | . . . . Machines Sabotaged . | . . . . Overloaded Fab Kills . | . . . . Hacking | -11 -10 -10 -8 --------- Run | Yrd Mat Sub Mat Machines Accessed 2 | . 1 . 1 Terminals 1 | . . . 1 Fabricators . | . . . . Repair Stations 1 | . 1 . . Recycling Units . | . . . . Scanalyzers . | . . . . Garrison Access . | . . . . Total Hacks 4 | . 1 . 3 Successful 2 | . 1 . 1 Failed 2 | . . . 2 Catastrophic 1 | . . . 1 Database Lockouts . | . . . . Manual 2 | . . . 2 Terminals 3 | . . . 3 Fabricators . | . . . . Repair Stations 1 | . 1 . . Recycling Units . | . . . . Scanalyzers . | . . . . Garrison Access . | . . . . Terminal Hacks 1 | . . . 1 Recall Investigation 1 | . . . 1 Fabricator Hacks . | . . . . Repair Station Hacks 1 | . 1 . . Refit 1 | . 1 . . Recycling Unit Hacks . | . . . . Scanalyzer . | . . . . Garrison Access Hacks . | . . . . Unauthorized Hacks . | . . . . Terminals . | . . . . Fabricators . | . . . . Repair Stations . | . . . . Recycling Units . | . . . . Scanalyzers . | . . . . Garrison Access . | . . . . Data Cores Recovered . | . . . . Used . | . . . . Hacking Detections 2 | . 1 . 1 Full Trace Events . | . . . . Feedback Events . | . . . . Feedback Blocked . | . . . . Robot Schematics Acquired . | . . . . Robots Built . | . . . . Authchips . | . . . . Time . | . . . . Total Robot Build Rating . | . . . . Part Schematics Acquired . | . . . . Parts Built . | . . . . Authchips . | . . . . Time . | . . . . Total Part Build Rating . | . . . . Part Studies Acquired . | . . . . Parts Repaired . | . . . . Time . | . . . . Parts Recycled . | . . . . Recycled Matter . | . . . . Retrieved Matter . | . . . . Retrieved Components . | . . . . Parts Scanalyzed . | . . . . Part Schematics Acquired . | . . . . Parts Damaged . | . . . . Bothacking | -11 -10 -10 -8 ------------ Run | Yrd Mat Sub Mat Used RIF Installer . | . . . . Robots Hacked . | . . . . Non-combat . | . . . . Combat . | . . . . Robot Hacks Applied . | . . . . Relay Couplers Released . | . . . . Fabnet Peak Effective % . | . . . . Robots Rewired . | . . . . Allies Hacked . | . . . . Hacks Repelled . | . . . . Allies | -11 -10 -10 -8 -------- Run | Yrd Mat Sub Mat Total Allies . | . . . . Largest Group . | . . . . Highest-Rated Group . | . . . . Highest-Rated Ally . | . . . . Total Orders . | . . . . Ally Attacks . | . . . . Total Damage . | . . . . Kills . | . . . . Allies Corrupted . | . . . . Allies Melted . | . . . . Intel | -11 -10 -10 -8 ------- Run | Yrd Mat Sub Mat Active Infowar (turns) . | . . . . Robot Analysis Total . | . . . . Derelict Logs Recovered . | . . . . Drone Launches . | . . . . Drone Recoveries . | . . . . Exploration | -11 -10 -10 -8 ------------- Run | Yrd Mat Sub Mat Turns Passed 835 | 10 85 320 420 Spaces Moved 845 | 20 90 385 350 Core 41 | 20 21 . . Treads . | . . . . Legs . | . . . . Wheels . | . . . . Hover 462 | . 69 385 8 Flight 342 | . . . 342 Fastest Speed 31 | 50 50 76 31 Average Speed 57 | 50 69 76 33 Slowest Speed 76 | 50 76 76 76 Overloaded Moves . | . . . . Propulsion Burnouts . | . . . . Robots Hopped 3 | . . . 3 Potential Cave-ins . | . . . . Cave-ins Triggered . | . . . . Exploration Rate (%) 18 | 3 19 27 25 Regions Visited 3 Branch Regions 1 Pre-discovered Areas . | . . . . Known Exits Taken . | . . . . Unknown Exits Taken 3 | 1 1 1 . Scrap Searched . | . . . . Spaces Dug 1 | . . . 1 Terrain Destroyed 1 | . . . 1 Melee 1 | . . . 1 Projectile . | . . . . AOE . | . . . . Terrain Rammed . | . . . . Walls Destroyed . | . . . . Machines Disabled . | . . . . Actions | -11 -10 -10 -8 --------- Run | Yrd Mat Sub Mat Total 1147 | 19 97 414 617 Wait 229 | . . 17 212 Move 836 | 19 89 384 344 Hop 3 | . . . 3 Pick Up 16 | . 1 8 7 Fast Attach 11 | . . . 11 Attach 1 | . . . 1 Detach . | . . . . Swap 3 | . . . 3 Drop 20 | . . 4 16 Fire 21 | . 7 . 14 Melee 6 | . . . 6 Ram . | . . . . Kick . | . . . . Crush . | . . . . Escape Stasis . | . . . . Rewire . | . . . . Trap 1 | . . 1 . Miscellaneous . | . . . . Route ------- -11/Scrapyard -10/Materials -10/Subcaves (discovered 2 exits: *Mat / [Scr]) -8/Materials History --------- Turn | Location | Event 3 | -11/Scrapyard | Discovered new exit (range 16) 11 | -11/Scrapyard | Entered Materials 12 | -10/Materials | Met a group of wandering Federalists 12 | -10/Materials | Discovered new exit (range 9) 96 | -10/Materials | Entered Subcaves 97 | -10/Subcaves | Continued accompanying wandering Federalists (5) 281 | -10/Subcaves | Shifting Twisted Machinery released Shrapnel Trap 318 | -10/Subcaves | Build established: Mutant 374 | -10/Subcaves | Discovered new exit (range 6) 416 | -10/Subcaves | Entered Materials 416 | -8/Materials | Evolved 4 slots: Propulsion x2, Utility x2 731 | -8/Materials | Build established: Sprinter 836 | -8/Materials | Self-destructed Last Messages --------------- 00783_ K-01 Serf collects debris. 00785_ Acquired 26 matter. 00786_ K-01 Serf collects debris. 00786_ Sneak attack on K-01 Serf. 00786_ Destroyed Wheel. 00786_ K-01 Serf system corrupted by crushing effect. 00786_ Lgt. Ion Engine fried. 00786_ Wheel fried. 00786_ Sml. Matter Pod fried. 00786_ K-01 Serf destroyed. 00788_ Acquired 23 matter. 00789_ Sneak attack on A-02 Transporter. 00794_ Lgt. Nuclear Core destroyed. 00796_ A-02 Transporter destroyed. 00798_ Acquired 39 matter. 00799_ K-01 Serf collects debris. 00799_ Xenon Bombardment Thruster destroyed. 00802_ K-01 Serf collects debris. 00829_ U-05 Engineer builds a Wall. Map ----- +----------------------------------------------------+ | ????????????????????????????????#|| # !#?? | | ????????????????????????????????# + #?? | | ????????????????????????????????# # """ #?? | | ????????????????????????????????# *[=#??"" !#?? | | ????????????????????????????????# [ !#???? ???? | | ????????????????????????????????####### #????????? | | ??????????????????????????????????????# #????????? | | ??????????????????????????????????????# #????????? | | ??????????????????????????##??????????# #????????? | | ??????????????????????????? ??????????# #????????? | | ???????????????????????????# ?????????# #????????? | | ???????????????????????????? ?????????# #????????? | | ????????????????????????????# ????????# #????????? | | ????????????????????????????# ????????# #????????? | | ????????????????????????????# ???????# #????????? | | ????????????????????????????# ######## ####?????? | | ??????????????????????####### ! [ = ! #?????? | | ?????????????????? ![= [ #?????? | | ???????????????H? !/ [ + ??? | | ?????????????????############+#### %!// # ??? | | ????????????????????????# # !/ ##?????? | | ????????????????????????# u"""# !#??????? | | ????????????????????????# """# #??????? | | ????????????????????????# """# #??????? | | ????????????????????????# # #??????? | | ????????????????????????#@ """# #??????? | | ????????????????????????# """# #??????? | | ????????????????????????# u"""####### ######## | | ????????????????????????# #?????# # | | ????????????????????????################ # | | ????????????????????????????## # # | | ?????????????????????????????# # # | | ?????????????????????????????# """ """ + + | | ?????????????????????????????# """ """ # # | | ?????????????????????????????# """ """ # # | | ?????????????????????????????# #### | | ?????????????????????????????# ! #??# | | ?????????????????????????????# #??######## | | ?????????????????????????????###########?????????? | | ?????????????????????????????????????????????????? | | ?????????????????????????????????????????????????? | | ?????????????????????????????????????????????????? | | ?????????????????????????????????????????????????? | | | | | | | | | | | | | | | +----------------------------------------------------+ Best States ------------- Heat Dissipation 31 Energy Generation 15 Energy Capacity 240 Matter Stores 300 Matter Capacity 300 Sight Range 16 Terrain Scan Density 10 Armor Coverage 160 Evasion (%) 63 Melee Accuracy 24 Item Schematics ----------------- None Robot Schematics ------------------ None Fabricated ------------ Nothing Repaired ---------- Nothing Studied --------- None Alien Tech Used ----------------- None Achievements -------------- None Challenges ------------ None Game ------ Seed VariablePrecisionTendrils Manual? 0 Play Time 00:11:39 Cumulative 53.0 hours Start 2026.09.03 @ 16:11:29 End 2026.09.04 @ 14:43:10 Sessions 2 Manual Loads 0 Difficulty Rogue Special Mode None Game No. 132 Rogue 132 Adventurer 0 Explorer 0 Win Type - Total 3 Types 3/0/0/0/0/0/0/0/0/0 Lore% 47 Gallery% 41 Achievement% 43 Wizard Run 0 Options --------- Layout 2 ASCII 0 Keyboard 0 Movement Mouse Keybinds 0 Fullscreen 1 Font 16/SmallcapsGlow Map View 50x49 Zoom Use 0% Tactical HUD 1 Map Filters NONE Filters NONE Steam SD RUN: 8fdf28a4-6921-4172-8892-b0c32f63b661